bitfinex-derivatives/quotes_SOLF0:USTF0_20250716
["timestamp","ask_amount","ask_price","bid_price","bid_amount"]
[1752642988267,33.0,163.32,163.27,5.20230033]
[1752642988467,6.1233,163.31,163.27,6.1243]
[1752642988762,33.0,163.32,163.27,6.1243]
[1752642989074,6.1236,163.3,163.27,6.1243]
[1752642989370,33.0,163.32,163.28,0.04644935]
[1752642989663,6.1237,163.29,163.28,0.04644935]
[1752642989867,6.1237,163.29,163.25,4.29384801]
[1752642990069,6.1237,163.29,163.27,0.0387778]
[1752642992270,6.1241,163.28,163.27,0.0387778]
[1752642996572,33.0,163.27,163.18,5.12551278]
[1752642996774,4.29384801,163.24,163.19,11.33505728]
[1752642997075,4.29384801,163.24,163.2,5.20775728]
[1752642997076,6.1264,163.22,163.2,5.20775728]
[1752642997271,6.1264,163.22,163.21,5.20775728]
[1752642997466,6.1264,163.22,163.19,6.1273]
[1752642997675,6.1264,163.22,163.2,5.203659]
[1752642997874,6.1264,163.22,163.19,6.1273]
[1752642998075,6.1264,163.22,163.2,5.20266339]
[1752642998279,6.1264,163.22,163.19,6.1273]
[1752642998470,6.1264,163.22,163.2,5.2014233]
[1752642998670,6.1264,163.22,163.19,6.1273]
[1752642998974,6.1261,163.23,163.2,5.2014233]
[1752642999170,6.1261,163.23,163.17,4.29384801]
[1752642999372,6.1261,163.23,163.18,5.20179833]
[1752642999673,6.1261,163.23,163.19,5.20179833]
[1752642999873,6.1261,163.23,163.2,5.20179833]
[1752643000076,6.1261,163.23,163.17,4.29384801]
[1752643000272,6.1261,163.23,163.18,5.20355904]
[1752643000475,6.1261,163.23,163.19,5.20355904]
[1752643000673,4.29384801,163.24,163.18,6.1277]
[1752643001174,6.1268,163.21,163.18,6.1277]
[1752643001375,6.1268,163.21,163.19,6.1275]
[1752643001676,6.1266,163.22,163.19,6.1275]
[1752643002278,6.1269,163.21,163.18,6.1277]
[1752643004880,4.29384801,163.22,163.17,6.1281]
[1752643005482,6.1273,163.2,163.17,6.1281]
[1752643006980,33.0,163.24,163.18,6.1278]
[1752643007176,4.29384801,163.22,163.18,6.1278]
[1752643008082,6.127,163.21,163.18,6.1278]
[1752643009389,6.1266,163.22,163.19,6.1273]
[1752643009682,33.0,163.24,163.18,4.29384801]
[1752643009879,33.0,163.24,163.19,5.16303809]
[1752643010087,33.0,163.24,163.18,4.29384801]
[1752643010276,33.0,163.24,163.19,5.16292301]
[1752643010483,39.1257,163.24,163.2,6.1269]
[1752643013388,6.1261,163.23,163.2,6.1269]
[1752643014384,39.1258,163.24,163.21,6.1267]
[1752643014882,33.0,163.24,163.2,4.29384801]
[1752643015087,33.0,163.29,163.22,4.29384801]
[1752643015388,6.1248,163.27,163.22,4.29384801]
[1752643016189,6.1248,163.27,163.23,6.1259]
[1752643017890,6.1249,163.26,163.23,6.1259]
[1752643018390,6.1253,163.25,163.22,10.42004801]
[1752643018890,6.1249,163.26,163.22,10.42004801]
[1752643019796,6.1245,163.27,163.22,4.29384801]
[1752643020490,182.0,163.3,163.26,4.29384801]
[1752643020695,182.0,163.3,163.26,10.41854801]
[1752643020992,188.1236,163.3,163.26,10.41854801]
[1752643021292,182.0,163.3,163.26,4.29384801]
[1752643021993,182.0,163.3,163.24,4.29384801]
[1752643022396,6.1248,163.27,163.24,4.29384801]
[1752643023492,6.1248,163.27,163.23,10.41964801]
[1752643025095,6.1248,163.27,163.23,6.1258]
[1752643025395,6.1248,163.27,163.23,10.41964801]
[1752643026097,6.1248,163.27,163.23,6.1258]
[1752643026293,6.1242,163.28,163.23,10.41964801]
[1752643027496,6.1242,163.28,163.24,6.1256]
[1752643028295,6.1246,163.27,163.23,10.41964801]
[1752643028897,6.1249,163.26,163.19,5.12551278]
[1752643029197,4.29384801,163.29,163.21,4.29384801]
[1752643029393,6.1254,163.25,163.21,10.42054801]
[1752643030293,4.29384801,163.27,163.21,4.29384801]
[1752643030596,4.29384801,163.25,163.17,4.29384801]
[1752643030795,6.1261,163.23,163.18,11.29257309]
[1752643031091,6.1261,163.23,163.19,5.16497309]
[1752643031395,6.1261,163.23,163.18,6.1276]
[1752643031595,6.1261,163.23,163.19,11.28033051]
[1752643031797,6.1261,163.23,163.19,6.1275]
[1752643032397,4.29384801,163.25,163.17,4.29384801]
[1752643032597,4.29384801,163.25,163.18,5.15236766]
[1752643032799,6.1267,163.22,163.18,6.1278]
[1752643033098,4.29384801,163.25,163.17,4.29384801]
[1752643033298,6.1274,163.2,163.16,6.1284]
[1752643035098,6.1275,163.19,163.15,6.1288]
[1752643035292,6.1275,163.19,163.16,5.15620548]
[1752643035499,6.1275,163.19,163.15,6.1288]
[1752643035699,6.128,163.18,163.14,10.42314801]
[1752643036000,4.29384801,163.21,163.15,5.15723168]
[1752643036195,4.29384801,163.21,163.14,4.29384801]
[1752643036396,4.29384801,163.21,163.15,5.15723168]
[1752643036596,4.29384801,163.21,163.14,4.29384801]
[1752643036799,4.29384801,163.21,163.15,5.15727007]
[1752643037100,4.29384801,163.21,163.14,4.29384801]
[1752643037299,6.1281,163.18,163.15,11.28578011]
[1752643037499,6.1281,163.18,163.14,4.29384801]
[1752643038001,6.1281,163.18,163.14,10.42304801]
[1752643038303,6.1283,163.17,163.14,10.42304801]
[1752643038498,6.1283,163.17,163.12,6.1298]
[1752643038702,6.1283,163.17,163.13,5.15733107]
[1752643038901,6.1283,163.17,163.14,5.15733107]
[1752643039103,6.1283,163.17,163.12,4.29384801]
[1752643039300,6.128,163.18,163.13,5.15792864]
[1752643039500,33.0,163.2,163.14,5.15792864]
[1752643039699,6.1276,163.19,163.12,4.29384801]
[1752643039894,6.1276,163.19,163.13,5.15752156]
[1752643040098,6.1276,163.19,163.14,11.28652156]
[1752643040301,6.1276,163.19,163.14,6.129]
[1752643040497,6.1276,163.19,163.12,4.29384801]
[1752643040697,6.1276,163.19,163.13,5.15685859]
[1752643040899,6.1276,163.19,163.14,5.15685859]
[1752643041101,6.1279,163.18,163.14,6.1291]
[1752643041606,4.29384801,163.19,163.11,4.29384801]
[1752643042801,6.1287,163.16,163.12,6.1299]
[1752643043003,4.29384801,163.19,163.1,4.29384801]
[1752643043203,33.0,163.18,163.11,5.15723166]
[1752643043501,33.0,163.18,163.1,4.29384801]
[1752643043998,6.1288,163.16,163.1,4.29384801]
[1752643044704,6.1288,163.16,163.12,6.1299]
[1752643045704,6.1288,163.16,163.13,6.1296]
[1752643046109,6.1288,163.16,163.1,4.29384801]
[1752643046409,6.1288,163.16,163.12,6.1299]
[1752643047011,6.129,163.15,163.11,6.1304]
[1752643047412,4.29384801,163.17,163.09,181.62]
[1752643047914,6.1293,163.15,163.1,6.1306]
[1752643048410,6.1296,163.14,163.1,6.1306]
[1752643050912,4.29384801,163.15,163.05,529.48]
[1752643051116,4.29384801,163.13,163.07,4.29384801]
[1752643051316,4.29384801,163.13,163.05,4.29384801]
[1752643051518,6.1307,163.11,163.07,6.1318]
[1752643051920,6.131,163.1,163.06,6.1323]
[1752643052122,4.29384801,163.11,163.06,6.1323]
[1752643052314,4.29384801,163.11,163.04,185.81384801]
[1752643052514,6.1313,163.09,163.05,6.1325]
[1752643053211,4.29384801,163.11,163.05,6.1325]
[1752643053618,6.1313,163.09,163.05,6.1325]
[1752643053819,6.1313,163.09,163.06,6.1323]
[1752643054321,6.1309,163.1,163.06,6.1323]
[1752643054526,4.29384801,163.14,163.05,4.29384801]
[1752643055213,6.1303,163.12,163.08,6.1313]
[1752643055415,4.29384801,163.12,163.04,185.81384801]
[1752643056017,6.1307,163.11,163.06,6.1322]
[1752643056214,37.29384801,163.15,163.08,4.29384801]
[1752643056520,39.1295,163.14,163.1,6.1306]
[1752643057517,39.1295,163.14,163.11,6.1305]
[1752643057720,33.0,163.14,163.08,4.29384801]
[1752643058020,33.0,163.14,163.11,6.1302]
[1752643059920,39.1294,163.14,163.1,10.42464801]
[1752643061326,6.1298,163.13,163.1,4.29384801]
[1752643061621,33.0,163.14,163.08,4.29384801]
[1752643062420,37.29384801,163.14,163.08,4.29384801]
[1752643062924,37.29384801,163.14,163.09,6.131]
[1752643063122,37.29384801,163.14,163.08,4.29384801]
[1752643064325,6.1304,163.12,163.08,10.42534801]
[1752643064629,33.0,163.14,163.08,4.29384801]
[1752643065016,33.0,163.14,163.1,4.29384801]
[1752643065720,33.0,163.14,163.11,6.1302]
[1752643067328,33.04352205,163.14,163.12,4.29384801]
[1752643067520,0.04352205,163.14,163.12,4.29384801]
[1752643067719,33.0,163.19,163.12,4.29384801]
[1752643067921,6.1286,163.17,163.13,6.1297]
[1752643068121,0.03981856,163.15,163.13,6.1297]
[1752643069119,0.03981856,163.15,163.12,10.46255729]
[1752643070122,0.03981856,163.15,163.12,6.16870928]
[1752643070322,6.16911856,163.15,163.12,0.03870928]
[1752643071222,0.03981856,163.15,163.12,6.16880928]
[1752643071722,0.03981856,163.15,163.13,6.1296]
[1752643072531,0.03981856,163.15,163.14,6.1294]
[1752643073026,33.0,163.19,163.16,6.1284]
[1752643073229,6.1274,163.2,163.16,10.42224801]
[1752643073425,6.1274,163.2,163.16,4.29384801]
[1752643073927,6.1275,163.19,163.16,4.29384801]
[1752643074226,6.1275,163.19,163.16,4.33300847]
[1752643075228,4.29384801,163.22,163.16,0.03916046]
[1752643075427,37.29384801,163.23,163.16,6.16776046]
[1752643075628,33.0,163.22,163.16,6.16776046]
[1752643076022,6.1273,163.2,163.16,6.16776046]
[1752643076228,6.1273,163.2,163.17,6.1282]
[1752643076624,6.1273,163.2,163.16,0.03916046]
[1752643076825,6.1273,163.2,163.16,6.16766046]
[1752643077425,6.1273,163.2,163.17,6.1282]
[1752643078322,6.1273,163.2,163.16,6.16756046]
[1752643078528,6.1273,163.2,163.17,5.19472327]
[1752643078728,6.1273,163.2,163.16,6.16756046]
[1752643079034,6.1276,163.19,163.17,5.19472327]
[1752643079222,6.1276,163.19,163.16,0.03916046]
[1752643079426,6.1276,163.19,163.17,5.19517237]
[1752643079628,6.1276,163.19,163.16,0.03916046]
[1752643079931,6.1279,163.18,163.17,5.19517237]
[1752643080229,6.1279,163.18,163.16,0.03916046]
[1752643080230,4.29384801,163.21,163.16,0.03916046]
[1752643080632,6.1282,163.17,163.16,0.03916046]
[1752643084226,33.0,163.21,163.16,0.03916046]
[1752643084439,37.29384801,163.21,163.16,0.03916046]
[1752643084728,6.1278,163.19,163.16,0.03916046]
[1752643084930,37.29384801,163.21,163.16,0.03916046]
[1752643086234,6.1279,163.18,163.16,0.03916046]
[1752643092632,33.0,163.21,163.16,0.03916046]
[1752643094133,33.0,163.21,163.17,6.1282]
[1752643094436,33.0,163.21,163.17,4.29384801]
[1752643094939,33.0,163.24,163.17,4.29384801]
[1752643095638,6.126,163.23,163.19,6.17356625]
[1752643098139,33.0,163.24,163.19,0.04626625]
[1752643098637,37.29384801,163.24,163.19,0.04626625]
[1752643099338,4.29384801,163.22,163.19,0.04626625]
[1752643099541,33.0,163.24,163.19,0.04626625]
[1752643099839,4.29384801,163.23,163.19,0.04626625]
[1752643100736,6.1271,163.21,163.19,0.04626625]
[1752643101340,6.1271,163.2,163.19,0.04626625]
[1752643107146,33.0,163.22,163.19,0.04626625]
[1752643107938,6.1271,163.2,163.19,0.04626625]
[1752643109543,6.1269,163.21,163.19,0.04626625]
[1752643110238,6.1271,163.2,163.19,0.04626625]
[1752643111738,6.1268,163.21,163.19,0.04626625]
[1752643111945,33.0,163.22,163.19,0.04626625]
[1752643113242,33.0,163.25,163.19,0.04626625]
[1752643113644,6.1263,163.23,163.19,6.17366625]
[1752643113845,33.0,163.25,163.19,0.04626625]
[1752643114246,6.1265,163.22,163.19,0.04626625]
[1752643114945,6.1269,163.21,163.19,0.04626625]
[1752643115847,6.1271,163.2,163.19,0.04626625]
[1752643116949,6.1283,163.17,163.11,9.41936079]
[1752643117141,6.1283,163.17,163.12,5.20883784]
[1752643117347,4.29384801,163.19,163.13,11.33833784]
[1752643117645,4.29384801,163.19,163.14,5.20883784]
[1752643117845,4.29384801,163.19,163.12,6.1299]
[1752643118148,4.29384801,163.19,163.13,5.21115291]
[1752643118353,6.1291,163.15,163.12,6.1299]
[1752643118543,6.1291,163.15,163.13,5.21132895]
[1752643118851,6.1291,163.15,163.12,6.1299]
[1752643119848,4.29384801,163.17,163.09,4.29384801]
[1752643120048,4.29384801,163.17,163.1,5.21201908]
[1752643120348,4.29384801,163.17,163.11,5.21201908]
[1752643120545,4.29384801,163.17,163.09,4.29384801]
[1752643120749,4.29384801,163.17,163.1,5.21044673]
[1752643121049,4.29384801,163.17,163.11,5.21044673]
[1752643121247,4.29384801,163.15,163.07,9.41936079]
[1752643121450,4.29384801,163.15,163.08,5.21089934]
[1752643121650,4.29384801,163.15,163.09,5.21089934]
[1752643121849,6.13,163.13,163.1,5.21089934]
[1752643122044,6.13,163.13,163.09,6.1309]
[1752643122250,6.13,163.13,163.1,5.21093937]
[1752643122551,6.13,163.13,163.07,4.29384801]
[1752643122753,6.13,163.13,163.08,5.20966374]
[1752643122952,6.13,163.13,163.09,5.20966374]
[1752643123148,6.13,163.13,163.1,5.20966374]
[1752643123349,6.13,163.13,163.07,4.29384801]
[1752643123545,6.13,163.13,163.08,5.20855717]
[1752643123747,6.13,163.13,163.09,5.20855717]
[1752643123944,6.13,163.13,163.1,5.20855717]
[1752643124149,6.13,163.13,163.1,6.1307]
[1752643126255,4.29384801,163.15,163.1,6.1307]
[1752643126256,6.1295,163.14,163.1,6.1307]
[1752643133267,33.0,163.18,163.07,4.29384801]
[1752643133463,4.29384801,163.17,163.09,4.29384801]
[1752643133668,4.29384801,163.17,163.1,5.19688103]
[1752643133968,6.1288,163.16,163.12,6.1301]
[1752643134367,6.1286,163.16,163.12,6.13]
[1752643135372,6.1283,163.17,163.13,6.1296]
[1752643136571,6.1287,163.16,163.12,6.13]
[1752643136972,6.129,163.15,163.12,6.13]
[1752643137172,6.129,163.15,163.11,10.42424801]
[1752643137373,6.129,163.15,163.12,5.19328604]
[1752643137674,6.129,163.15,163.11,10.42424801]
[1752643137873,6.129,163.15,163.12,5.1932824]
[1752643138073,6.129,163.15,163.11,10.42424801]
[1752643138269,6.129,163.15,163.12,5.19268501]
[1752643138469,6.129,163.15,163.11,4.29384801]
[1752643138673,6.129,163.15,163.12,11.32245746]
[1752643138974,6.129,163.15,163.12,6.1301]
[1752643141075,37.29384801,163.18,163.1,4.29384801]
[1752643141269,37.29384801,163.18,163.08,4.29384801]
[1752643141270,4.29384801,163.16,163.08,4.29384801]
[1752643141579,6.1297,163.14,163.1,6.1308]
[1752643142675,6.1298,163.13,163.1,6.1308]
[1752643143080,6.1298,163.13,163.09,6.1311]
[1752643143281,6.1298,163.13,163.1,5.19387701]
[1752643143472,6.1298,163.13,163.09,6.1311]
[1752643143677,6.1298,163.13,163.1,5.19429418]
[1752643143874,6.1298,163.13,163.08,4.29384801]
[1752643144082,6.1302,163.12,163.09,5.19515937]
[1752643144280,6.1302,163.12,163.06,5.12551278]
[1752643144478,6.1302,163.12,163.08,6.1314]
[1752643144679,6.1302,163.12,163.09,5.19592995]
[1752643144975,4.29384801,163.14,163.08,6.1314]
[1752643145573,6.1303,163.12,163.08,6.1314]
[1752643147884,6.1303,163.12,163.09,6.1311]
[1752643148079,33.0,163.17,163.08,4.29384801]
[1752643148283,37.29384801,163.17,163.1,6.1306]
[1752643148685,6.1296,163.14,163.1,6.1306]
[1752643148983,6.1296,163.14,163.08,4.29384801]
[1752643149183,6.1296,163.14,163.09,5.19667665]
[1752643149384,6.1296,163.14,163.08,4.29384801]
[1752643149584,6.1296,163.14,163.09,5.19635708]
[1752643149886,6.1296,163.14,163.08,4.29384801]
[1752643149887,6.1296,163.14,163.1,5.19608686]
[1752643150081,6.1296,163.14,163.11,6.1305]
[1752643150283,6.1292,163.15,163.11,6.1305]
[1752643151081,6.1292,163.15,163.12,6.1299]
[1752643152184,6.1292,163.15,163.11,6.1303]
[1752643153485,33.0,163.17,163.09,4.29384801]
[1752643153682,37.29384801,163.17,163.1,5.19234998]
[1752643153882,37.29384801,163.17,163.11,5.19234998]
[1752643154088,37.29384801,163.17,163.11,6.1303]
[1752643154889,6.1292,163.15,163.11,6.1303]
[1752643156487,6.1294,163.14,163.11,6.1303]
[1752643156687,6.1294,163.14,163.1,6.1307]
[1752643156891,37.29384801,163.17,163.11,5.19455164]
[1752643157089,6.1299,163.13,163.09,4.29384801]
[1752643157286,6.1299,163.13,163.1,11.325448]
[1752643157590,6.1299,163.13,163.11,5.194548]
[1752643157791,6.1299,163.13,163.1,6.1309]
[1752643157987,6.1299,163.13,163.11,5.19663732]
[1752643158186,6.1299,163.13,163.12,5.19892053]
[1752643158681,6.1299,163.13,163.09,6.1311]
[1752643158884,6.1301,163.12,163.1,5.19959775]
[1752643159083,6.1301,163.12,163.11,5.19959775]
[1752643159282,6.1299,163.13,163.11,5.19959775]
[1752643159591,6.1299,163.13,163.09,6.1311]
[1752643159788,33.0,163.21,163.12,4.29384801]
[1752643159993,33.0,163.2,163.14,4.29384801]
[1752643160192,33.0,163.2,163.15,5.20259128]
[1752643160395,33.0,163.2,163.14,4.29384801]
[1752643160691,33.0,163.2,163.15,5.20168113]
[1752643160892,33.0,163.2,163.16,9.4940372]
[1752643161093,562.78,163.23,163.17,5.20018919]
[1752643161395,6.1268,163.21,163.18,5.20018919]
[1752643161589,6.1268,163.21,163.17,6.1279]
[1752643161896,6.1265,163.22,163.18,15.6197084]
[1752643162189,562.78,163.23,163.18,4.29384801]
[1752643162393,33.0,163.23,163.19,5.19509373]
[1752643162596,33.0,163.23,163.2,9.49168557]
[1752643162790,213.38,163.26,163.2,4.29659184]
[1752643162986,213.38,163.26,163.21,5.19277729]
[1752643163184,213.38,163.26,163.2,4.29659184]
[1752643163395,213.38,163.26,163.21,5.19274066]
[1752643163695,6.1255,163.25,163.21,6.1267]
[1752643163991,180.38,163.26,163.2,4.29659184]
[1752643164294,33.0,163.3,163.22,4.29659184]
[1752643164495,33.0,163.3,163.24,4.29659184]
[1752643164696,6.1243,163.28,163.24,4.29659184]
[1752643165200,6.1247,163.27,163.23,6.1258]
[1752643165394,6.1247,163.27,163.23,10.42239184]
[1752643165696,4.29495716,163.29,163.21,4.29495716]
[1752643165896,4.29495716,163.29,163.21,10.42155716]
[1752643166091,4.29495716,163.29,163.17,5.12551278]
[1752643166296,4.29495716,163.29,163.2,4.29495716]
[1752643166496,6.1254,163.25,163.2,10.42175716]
[1752643167198,4.29495716,163.29,163.2,10.42175716]
[1752643167696,4.29495716,163.29,163.21,6.1267]
[1752643167898,6.1254,163.25,163.21,6.1267]
[1752643168599,6.1249,163.26,163.22,10.42125716]
[1752643171198,6.1246,163.27,163.22,10.42125716]
[1752643172001,6.1242,163.28,163.23,6.1259]
[1752643172400,6.1242,163.28,163.22,4.29495716]
[1752643172795,6.1238,163.29,163.24,6.1256]
[1752643173301,6.1238,163.29,163.24,4.29495716]
[1752643174004,39.1235,163.3,163.25,6.1252]
[1752643175306,33.0,163.3,163.26,10.41975716]
[1752643175699,33.0,163.3,163.26,0.0436562]
[1752643176003,39.16527074,163.3,163.26,4.33861336]
[1752643177104,39.16527074,163.3,163.26,10.46341336]
[1752643178003,33.04187074,163.3,163.26,10.46341336]
[1752643178204,33.04187074,163.3,163.27,6.1245]
[1752643178902,33.04187074,163.3,163.26,6.1683562]
[1752643179106,33.04187074,163.3,163.26,0.0436562]
[1752643180705,39.16537074,163.3,163.26,0.0436562]
[1752643181205,6.16537074,163.3,163.26,0.0436562]
[1752643181602,6.16537074,163.3,163.26,6.1682562]
[1752643182107,6.124,163.29,163.26,0.0436562]
[1752643183609,6.1242,163.28,163.26,0.0436562]
[1752643184310,6.1239,163.29,163.26,0.0436562]
[1752643185604,0.04187074,163.3,163.26,0.0436562]
[1752643185908,6.1241,163.28,163.26,0.0436562]
[1752643187912,6.1239,163.29,163.26,0.0436562]
[1752643188110,6.1239,163.29,163.26,6.1684562]
[1752643188411,6.1242,163.28,163.26,0.0436562]
[1752643188714,0.04187074,163.3,163.26,0.0436562]
[1752643190108,4.29495716,163.29,163.26,0.0436562]
[1752643190809,6.1243,163.28,163.26,0.0436562]
[1752643197221,6.1238,163.29,163.26,0.0436562]
[1752643197517,33.04187074,163.3,163.26,0.0436562]
[1752643198418,6.1241,163.28,163.26,0.0436562]
[1752643198619,33.04187074,163.3,163.26,0.0436562]
[1752643198918,6.1245,163.28,163.26,0.0436562]
[1752643200010,6.1245,163.27,163.26,0.0436562]
[1752643200719,37.3368279,163.3,163.26,0.0436562]
[1752643201118,33.04187074,163.3,163.26,6.1682562]
[1752643201420,33.04187074,163.3,163.26,0.0436562]
[1752643201824,6.1239,163.29,163.26,0.0436562]
[1752643202618,6.1241,163.28,163.26,0.0436562]
[1752643203521,33.04187074,163.3,163.26,0.0436562]
[1752643206216,6.1241,163.28,163.26,0.0436562]
[1752643207523,6.1245,163.27,163.26,0.0436562]
[1752643211832,6.1238,163.29,163.26,0.0436562]
[1752643215934,33.04187074,163.3,163.26,0.0436562]
[1752643215935,6.1241,163.28,163.26,0.0436562]
[1752643216327,33.04187074,163.3,163.26,0.0436562]
[1752643217134,6.1239,163.29,163.26,0.0436562]
[1752643220337,33.04187074,163.3,163.26,0.0436562]
[1752643220836,6.1239,163.29,163.26,6.1684562]
[1752643223136,33.04187074,163.3,163.26,6.1684562]
[1752643223137,33.04187074,163.3,163.26,4.33861336]
[1752643223337,33.04187074,163.3,163.27,5.1898826]
[1752643223538,33.04187074,163.3,163.26,4.33861336]
[1752643223739,33.04187074,163.3,163.27,11.3147788]
[1752643223939,33.04187074,163.3,163.27,6.1243]
[1752643224337,33.04187074,163.3,163.26,4.33861336]
[1752643224639,33.04187074,163.3,163.27,5.19064877]
[1752643224843,33.04187074,163.3,163.26,4.33861336]
[1752643225145,33.04187074,163.3,163.28,6.1239]
[1752643225441,0.04187074,163.3,163.28,6.1239]
[1752643226338,0.04187074,163.3,163.27,6.1243]
[1752643226542,0.04187074,163.3,163.28,5.19042596]
[1752643226737,0.04187074,163.3,163.27,6.1243]
[1752643226932,6.16547074,163.3,163.28,5.19022262]
[1752643227136,6.16547074,163.3,163.26,4.33861336]
[1752643227332,6.16547074,163.3,163.27,5.18958711]
[1752643227538,6.16547074,163.3,163.28,5.18958711]
[1752643227742,6.16547074,163.3,163.26,6.1683562]
[1752643227942,6.1238,163.29,163.27,5.18977148]
[1752643228242,0.04187074,163.3,163.26,0.0436562]
[1752643228441,6.1241,163.28,163.26,0.0436562]
[1752643228641,4.29495716,163.29,163.26,0.0436562]
[1752643230246,6.1245,163.27,163.26,0.0436562]
[1752643231349,10.41925716,163.28,163.26,0.0436562]
[1752643233652,6.1245,163.27,163.26,0.0436562]
[1752643239259,10.41925716,163.28,163.26,0.0436562]
[1752643239455,6.1243,163.28,163.26,0.0436562]
[1752643239657,0.04187074,163.3,163.26,0.0436562]
[1752643239852,4.3368279,163.3,163.26,0.0436562]
[1752643241159,6.1239,163.29,163.26,6.1682562]
[1752643241858,10.4604279,163.3,163.26,6.1682562]
[1752643242058,10.4604279,163.3,163.27,6.1245]
[1752643242260,0.04187074,163.3,163.26,0.0436562]
[1752643242456,0.04187074,163.3,163.28,6.1239]
[1752643244764,0.04187074,163.3,163.29,6.1237]
[1752643245558,0.04187074,163.3,163.28,6.1239]
[1752643248868,6.16527074,163.3,163.28,6.1239]
[1752643249070,0.04187074,163.3,163.26,0.0436562]
[1752643249473,6.124,163.29,163.26,6.1683562]
[1752643249670,0.04187074,163.3,163.26,0.0436562]
[1752643250968,6.1238,163.29,163.26,0.0436562]
[1752643251169,0.04187074,163.3,163.26,0.0436562]
[1752643252072,4.3368279,163.3,163.26,6.1684562]
[1752643253074,6.124,163.29,163.26,6.1684562]
[1752643256773,6.124,163.29,163.26,0.0436562]
[1752643257771,6.1242,163.28,163.26,0.0436562]
[1752643261270,6.1239,163.29,163.26,0.0436562]
[1752643262978,2.74853602,163.28,163.26,0.0436562]
[1752643263478,2.74853602,163.28,163.26,6.1685562]
[1752643263980,2.74853602,163.28,163.26,0.0436562]
[1752643264176,8.87273602,163.28,163.26,0.0436562]
[1752643264579,2.74853602,163.27,163.26,0.0436562]
[1752643264782,8.87303602,163.27,163.26,0.0436562]
[1752643265078,2.74853602,163.27,163.26,0.0436562]
[1752643266082,8.87303602,163.27,163.26,0.0436562]
[1752643266282,2.74853602,163.27,163.2,2.74853602]
[1752643266481,2.74853602,163.24,163.21,5.18803214]
[1752643266678,33.0,163.29,163.19,2.74853602]
[1752643266679,2.74853602,163.23,163.19,2.74853602]
[1752643266881,2.74853602,163.22,163.2,5.18874205]
[1752643267083,4.29787861,163.24,163.16,9.42339139]
[1752643267284,6.1261,163.23,163.2,6.1269]
[1752643267583,0.04653657,163.22,163.2,6.1269]
[1752643267982,10.47081518,163.22,163.16,4.29787861]
[1752643268281,10.47081518,163.22,163.17,5.18988497]
[1752643268485,4.34441518,163.22,163.18,5.18988497]
[1752643268683,4.34441518,163.22,163.18,6.1277]
[1752643269286,4.34441518,163.22,163.17,6.1281]
[1752643269485,4.29787861,163.2,163.17,6.1281]
[1752643270088,10.42517861,163.2,163.17,6.1281]
[1752643270685,6.1273,163.2,163.18,6.1278]
[1752643271386,0.04365002,163.21,163.15,4.29787861]
[1752643271587,0.04365002,163.21,163.16,5.17891934]
[1752643271785,0.04365002,163.21,163.15,4.29787861]
[1752643271990,0.04365002,163.21,163.16,5.17868002]
[1752643272190,0.04365002,163.21,163.15,4.29787861]
[1752643272489,0.04365002,163.21,163.16,5.17884157]
[1752643272687,0.04365002,163.21,163.19,6.1274]
[1752643273391,0.04365002,163.21,163.2,6.1271]
[1752643274791,529.42,163.28,163.19,4.29787861]
[1752643274991,529.42,163.28,163.21,4.29787861]
[1752643275184,37.29787861,163.29,163.24,6.1253]
[1752643275389,37.29787861,163.29,163.2,4.29787861]
[1752643275787,6.1249,163.26,163.23,6.1259]
[1752643276187,37.29787861,163.29,163.23,6.1259]
[1752643276387,6.1246,163.27,163.23,6.1259]
[1752643278794,6.1249,163.26,163.23,6.1259]
[1752643279294,6.1249,163.26,163.22,6.1262]
[1752643279993,6.1249,163.26,163.2,4.29787861]
[1752643280993,6.1254,163.25,163.22,6.1261]
[1752643281194,4.29787861,163.27,163.18,4.29787861]
[1752643281390,4.29787861,163.27,163.19,5.1725305]
[1752643281391,6.125,163.26,163.19,5.1725305]
[1752643281592,6.125,163.26,163.18,4.29787861]
[1752643281791,4.29787861,163.27,163.19,5.17266443]
[1752643281990,4.29787861,163.27,163.23,6.1258]
[1752643281991,10.42257861,163.27,163.23,6.1258]
[1752643283195,6.1242,163.28,163.2,4.29787861]
[1752643283394,6.1242,163.28,163.23,0.04328554]